Cogmind - Beta 10.2 *** ADVENTURER MODE // 2021.08.06 @ 02:29:14 Player: toastahs Result: Destroyed by G-47 Trooper with Particle Gun Performance ------------- Evolutions (2) 1000 Regions Visited (4) 800 Robots Destroyed (28) 140 Value Destroyed (620) 620 Prototype IDs (4) 80 Alien Tech Used (0) 0 Bonus (0) 0 TOTAL SCORE: 2640 Bonus ------- None Cogmind --------- Core Integrity 0/550 Matter 132/300 Energy 45/100 System Corruption 0% Temperature Cool (200) Movement Core (50) Location -8/Materials Parts ------- > --- POWER (2) -------- (None) > --- PROPULSION (2) --- (None) > --- UTILITY (3) ------ (None) > --- WEAPON (4) ------- (None) > --- INVENTORY (4) ---- Aluminum Leg Large Storage Unit Compact Battery (300) Advanced Terrain Scanner Peak State ------------ > --- POWER ------------ Nuclear Core > --- PROPULSION ------- Aluminum Leg Carbon-fiber Leg > --- UTILITY ---------- Small Storage Unit Large Storage Unit Improved Light Armor Plating > --- WEAPON ----------- Particle Gun Spread Laser Electrolaser > --- INVENTORY -------- Armored Treads Advanced Treads Aluminum Leg Medium Storage Unit Large Storage Unit Compact Battery Advanced Terrain Scanner Recoil Stabilizer Improved Weapon Shielding Hardened Light Armor Plating Hardened Light Armor Plating [Rating: 21] Favorites ----------- Power Ion Engine Engine Ion Engine Power Core Nuclear Core Propulsion Aluminum Leg Treads Advanced Treads Leg Aluminum Leg Utility Large Storage Unit Device ECM Suite Storage Large Storage Unit Hackware System Shield Protection Improved Light Armor Plating Weapon Grenade Launcher Energy Gun EM Shotgun Ballistic Cannon Improved Light Cannon Launcher Grenade Launcher Build | -11 -10 -9 -9 -8 ------- Run | Scr Mat Mat Min Mat Slots Evolved 4 | . . 2 . 2 Power 1 | . . 1 . . Propulsion . | . . . . . Utility 1 | . . 1 . . Weapon 2 | . . . . 2 Parts Attached 40 | 6 3 3 . 28 Power 4 | 1 . . . 3 Engine 3 | 1 . . . 2 Core 1 | . . . . 1 Reactor . | . . . . . Propulsion 8 | 2 . . . 6 Treads 2 | . . . . 2 Leg 6 | 2 . . . 4 Wheel . | . . . . . Hover . | . . . . . Flight . | . . . . . Utility 15 | 1 1 2 . 11 Device 1 | . 1 . . . Storage 6 | 1 . 2 . 3 Processor . | . . . . . Hackware 2 | . . . . 2 Protection 6 | . . . . 6 Artifact . | . . . . . Weapon 13 | 2 2 1 . 8 Energy Gun 9 | 2 . . . 7 Energy Cannon . | . . . . . Ballistic Gun . | . . . . . Ballistic Cannon 1 | . . 1 . . Launcher 3 | . 2 . . 1 Special Weapon . | . . . . . Impact Weapon . | . . . . . Slashing Weapon . | . . . . . Piercing Weapon . | . . . . . Special Melee Weapon . | . . . . . Unidentified Prototypes . | . . . . . Parts Lost 22 | . . . 4 18 Power 4 | . . . 1 3 Propulsion 6 | . . . . 6 Utility 3 | . . . 1 2 Weapon 9 | . . . 2 7 Highest Loss Streak 9 | . . . 3 9 Average Slot Usage (%) 83 | . 97 83 85 73 Engine 10 | . 14 11 10 8 Leg 20 | . 28 22 22 15 Device 7 | . 11 11 10 . Storage 18 | . 14 17 22 17 Hackware 1 | . . . . 3 Protection 1 | . . . . 6 Energy Gun 7 | . 12 . . 18 Ballistic Cannon 5 | . . 5 10 . Launcher 8 | . 15 16 9 1 Naked Turns 1 | . . . . 1 Heaviest Build 55 | 12 16 45 45 55 Greatest Support 42 | 20 20 20 20 42 Greatest Overweight (x) 13 | . . 2 2 13 Average Overweight (x) 1 | . . . 1 1 Largest Inventory Capacity 16 | 6 6 16 16 16 Average Capacity 12 | 4 6 11 16 12 Most Carried 12 | 3 6 8 8 12 Average Carried 7 | . 3 7 8 8 Final Capacity 16 | 6 6 16 16 4 Final Carried 8 | 2 6 8 8 4 Class Distribution -------------------- 84% | Mutant 6% | Hacker-Mutant 3% | Bomber 3% | Hacker-Gunner Dominant Class ---------------- Mutant | -10/Materials Mutant | -9/Materials Mutant | -9/Mines Mutant | -8/Materials Resources | -11 -10 -9 -9 -8 ----------- Run | Scr Mat Mat Min Mat Matter Collected 672 | 220 90 27 119 216 Remotely . | . . . . . Salvage Created 715 | . 232 28 45 410 Parts 53 | . 25 5 6 17 Haulers Intercepted 2 | . 1 1 . . Recyclers Shooed . | . . . . . Parts Field Recycled . | . . . . . Retrieved Matter . | . . . . . Parts Self-Destructed . | . . . . . Prevented . | . . . . . Kills | -11 -10 -9 -9 -8 ------- Run | Scr Mat Mat Min Mat Combat Hostiles Destroyed 21 | . 8 1 4 8 Guns 10 | . 2 . . 8 Cannons 1 | . . . 1 . AOE 10 | . 6 1 3 . Classes Destroyed 8 | . 6 1 . 1 Worker 1 | . 1 . . . Builder 3 | . 1 . 1 1 Hauler 2 | . 1 1 . . Recycler 1 | . 1 . . . Swarmer 9 | . 6 . 3 . Grunt 7 | . 2 . . 5 Sentry 3 | . . 1 . 2 Hunter 1 | . . . . 1 Best Kill Streak 9 | . 9 2 3 3 Combat Bots Only 3 | . 3 1 3 2 Max Kills in Single Turn 3 | . 3 1 3 1 Gunslinging . | . . . . . Exploded 3 | . 3 1 3 . Melee . | . . . . . Uniques/NPCs Destroyed 1 | . . . 1 . YI-UF0 (-9/Mines) Combat | -11 -10 -9 -9 -8 -------- Run | Scr Mat Mat Min Mat Damage Taken 3145 | . 154 50 419 2522 Core 663 | . 26 10 64 563 Absorbed by Shields . | . . . . . Core Remaining (%) 90 | 100 89 . 81 . Volleys Fired 61 | . 13 11 5 32 Largest 3 | . 2 2 2 3 Hottest 193 | . 90 69 69 193 Shots Fired 118 | . 26 15 7 70 Gun 90 | . 20 . . 70 Cannon 15 | . . 10 5 . Launcher 13 | . 6 5 2 . Special . | . . . . . Kinetic 15 | . . 10 5 . Thermal 61 | . 20 . . 41 Explosive 13 | . 6 5 2 . Electromagnetic 29 | . . . . 29 Robot Hit Streak 23 | . 13 6 9 23 Robot Miss Streak 3 | . 3 1 . 3 Penetration Max . | . . . . . Secondary Targets 2 | . . . . 2 Max Gunslinging Chain 1 | . . . . 1 Shots Hit Robots 96 | . 17 11 6 62 Core Hits 73 | . 18 5 5 45 Critical Hits . | . . . . . Critical Kills . | . . . . . Critical Parts Destroyed . | . . . . . Melee Attacks . | . . . . . Impact . | . . . . . Slashing . | . . . . . Piercing . | . . . . . Sneak Attacks . | . . . . . Combat Hostiles . | . . . . . Follow-up Attacks . | . . . . . Damage Inflicted 2281 | . 638 259 212 1172 Guns 1095 | . 163 . . 932 Cannons 215 | . . 124 91 . Explosions 967 | . 471 135 121 240 Melee . | . . . . . Ramming 4 | . 4 . . . Kinetic 215 | . . 124 91 . Thermal 889 | . 163 . . 726 Explosive 727 | . 471 135 121 . Electromagnetic 446 | . . . . 446 Impact . | . . . . . Slashing . | . . . . . Piercing . | . . . . . Highest Corruption . | . . . . . Average Corruption . | . . . . . Corruption Purged . | . . . . . Overload Shots . | . . . . . Overflow Damage 50 | . 19 . . 31 Projectiles . | . . . . . Explosions 50 | . 19 . . 31 Melee . | . . . . . Knockbacks 2 | . . . 2 . Impact . | . . . . . Kinetic 2 | . . . 2 . Secondary . | . . . . . Self-Inflicted Damage 177 | . 64 11 54 48 Shots 9 | . 3 2 2 2 Rammed 1 | . 1 . . . Targets Rammed 1 | . 1 . . . Kicked . | . . . . . Crushed . | . . . . . Highest Temperature 901 | . 300 9 . 901 Average Temperature 236 | . 161 9 . 260 Received Heat Transfer 1002 | . 48 18 . 936 Effects 15 | . . . . 15 Shutdowns 3 | . . . . 3 Energy Bleed 2 | . . . . 2 Interference 3 | . . . . 3 Matter Decay 4 | . . . . 4 Damage (minor) 2 | . . . . 2 Damage (core) 1 | . . . . 1 Siege Activations . | . . . . . Robots Corrupted . | . . . . . Combat Hostiles . | . . . . . Parts Fried 3 | . . . . 3 Impact Corruptions . | . . . . . Robots Melted . | . . . . . Combat Hostiles . | . . . . . Parts Melted 2 | . 1 . . 1 Heat Transferred 1558 | . 434 . . 1124 Parts Sabotaged . | . . . . . Parts Stolen . | . . . . . Parts Stripped . | . . . . . Power Chain Reactions 3 | . . . . 3 Missiles Intercepted . | . . . . . Alert | -11 -10 -9 -9 -8 ------- Run | Scr Mat Mat Min Mat Peak Influence 221 | . 221 155 75 147 Initial 79 | . . 79 51 . Average 66 | . 100 103 52 60 Maximum Alert Level 1 | . 1 . . . Low Security (%) 98 | 100 83 100 100 100 Level 1 1 | . 16 . . . Level 2 . | . . . . . Level 3 . | . . . . . Level 4 . | . . . . . Level 5 . | . . . . . High Security . | . . . . . Max Security . | . . . . . Squads Dispatched 5 | . 1 1 . 3 Investigation 2 | . 1 . . 1 Extermination . | . . . . . Reinforcement 2 | . . 1 . 1 Assault . | . . . . . Garrison 1 | . . . . 1 Intercept . | . . . . . Construction Impeded 2 | . . 1 . 1 Haulers Reinforced . | . . . . . Stealth | -11 -10 -9 -9 -8 --------- Run | Scr Mat Mat Min Mat Distress Signals 1 | . 1 . . . Communications Jammed . | . . . . . Distress Signals . | . . . . . Times Spotted 41 | . 12 1 5 23 Peak Tracking Total 10 | . 5 1 3 10 Tactical Retreats 3 | . 1 . . 2 Traps | -11 -10 -9 -9 -8 ------- Run | Scr Mat Mat Min Mat Traps Triggered 1 | . . . . 1 Indirectly . | . . . . . Trap Hack Attempts . | . . . . . Triggered . | . . . . . Disarmed . | . . . . . Reprogrammed . | . . . . . Reused . | . . . . . Traps Extracted . | . . . . . Installed . | . . . . . Triggered 1 | . . . . 1 Machines | -11 -10 -9 -9 -8 ---------- Run | Scr Mat Mat Min Mat Machines Disabled 1 | . . . . 1 Max in Single Turn 1 | . . . . 1 Machines Sabotaged . | . . . . . Garrisons Compromised . | . . . . . Overloaded Fab Kills . | . . . . . Fab Network Shutdowns . | . . . . . Hacking | -11 -10 -9 -9 -8 --------- Run | Scr Mat Mat Min Mat Machines Accessed 10 | . 2 5 . 3 Terminals 9 | . 2 5 . 2 Fabricators . | . . . . . Repair Stations . | . . . . . Recycling Units . | . . . . . Scanalyzers 1 | . . . . 1 Garrison Access . | . . . . . Total Hacks 44 | . 5 17 . 22 Successful 41 | . 4 16 . 21 Failed 3 | . 1 1 . 1 Catastrophic . | . . . . . Database Lockouts . | . . . . . Manual . | . . . . . Terminals 32 | . 5 17 . 10 Fabricators . | . . . . . Repair Stations . | . . . . . Recycling Units . | . . . . . Scanalyzers 12 | . . . . 12 Garrison Access . | . . . . . Terminal Hacks 29 | . 4 16 . 9 Record 11 | . 1 7 . 3 Robot Analysis 1 | . . 1 . . Prototype ID Bank 2 | . . 1 . 1 Branch Access Points 1 | . . 1 . . Emergency Access Points 1 | . . . . 1 Terminal Index 1 | . . . . 1 Alert Level 1 | . 1 . . . Locate Traps 1 | . . 1 . . Dispatch Records 1 | . . . . 1 Patrol Status 1 | . . 1 . . Hauler Manifests 3 | . 2 . . 1 Registered Components 1 | . . 1 . . Zone Layout 4 | . . 3 . 1 Fabricator Hacks . | . . . . . Repair Station Hacks . | . . . . . Recycling Unit Hacks . | . . . . . Scanalyzer 12 | . . . . 12 Insert Component 5 | . . . . 5 Analyze 7 | . . . . 7 Garrison Access Hacks . | . . . . . Unauthorized Hacks . | . . . . . Terminals . | . . . . . Fabricators . | . . . . . Repair Stations . | . . . . . Recycling Units . | . . . . . Scanalyzers . | . . . . . Garrison Access . | . . . . . Data Cores Recovered . | . . . . . Used . | . . . . . Hacking Detections 7 | . 2 3 . 2 Full Trace Events 2 | . 1 . . 1 Feedback Events . | . . . . . Feedback Blocked . | . . . . . Robot Schematics Acquired . | . . . . . Robots Built . | . . . . . Matter . | . . . . . Time . | . . . . . Total Robot Build Rating . | . . . . . Part Schematics Acquired 5 | . . . . 5 Parts Built . | . . . . . Matter . | . . . . . Time . | . . . . . Total Part Build Rating . | . . . . . Parts Repaired . | . . . . . Time . | . . . . . Parts Recycled . | . . . . . Recycled Matter . | . . . . . Retrieved Matter . | . . . . . Retrieved Components . | . . . . . Parts Scanalyzed 5 | . . . . 5 Part Schematics Acquired 5 | . . . . 5 Parts Damaged . | . . . . . Bothacking | -11 -10 -9 -9 -8 ------------ Run | Scr Mat Mat Min Mat Used RIF Installer . | . . . . . Robots Hacked . | . . . . . Non-combat . | . . . . . Combat . | . . . . . Robot Hacks Applied . | . . . . . Relay Couplers Released . | . . . . . Robots Rewired . | . . . . . Allies Hacked . | . . . . . Hacks Repelled . | . . . . . Allies | -11 -10 -9 -9 -8 -------- Run | Scr Mat Mat Min Mat Total Allies . | . . . . . Largest Group . | . . . . . Highest-Rated Group . | . . . . . Highest-Rated Ally . | . . . . . Total Orders . | . . . . . Ally Attacks . | . . . . . Total Damage . | . . . . . Kills . | . . . . . Allies Corrupted . | . . . . . Allies Melted . | . . . . . Intel | -11 -10 -9 -9 -8 ------- Run | Scr Mat Mat Min Mat Robot Analysis Total 1 | . . 1 . . Derelict Logs Recovered . | . . . . . Drone Launches . | . . . . . Drone Recoveries . | . . . . . Exploration | -11 -10 -9 -9 -8 ------------- Run | Scr Mat Mat Min Mat Turns Passed 2312 | 72 275 342 926 697 Spaces Moved 1292 | 68 186 208 512 318 Core 37 | 34 . . . 3 Treads 13 | . . . . 13 Legs 1242 | 34 186 208 512 302 Wheels . | . . . . . Hover . | . . . . . Flight . | . . . . . Fastest Speed 50 | 50 120 120 150 50 Average Speed 157 | 85 120 148 178 165 Slowest Speed 700 | 120 120 180 180 700 Overloaded Moves . | . . . . . Propulsion Burnouts . | . . . . . Robots Hopped . | . . . . . Cave-ins Triggered . | . . . . . Exploration Rate (%) 29 | 4 37 21 58 26 Regions Visited 4 Branch Regions 1 Pre-discovered Areas . | . . . . . Known Exits Taken 1 | . . 1 . . Unknown Exits Taken 3 | 1 1 . 1 . Scrap Searched . | . . . . . Spaces Dug . | . . . . . Terrain Destroyed 83 | . 26 31 12 14 Melee . | . . . . . Projectile . | . . . . . AOE 83 | . 26 31 12 14 Terrain Rammed . | . . . . . Walls Destroyed . | . . . . . Machines Disabled . | . . . . . Actions | -11 -10 -9 -9 -8 --------- Run | Scr Mat Mat Min Mat Total 1467 | 82 213 227 516 429 Wait 20 | 1 . . . 19 Move 1288 | 67 185 207 511 318 Hop . | . . . . . Pick Up 42 | 8 7 4 . 23 Fast Attach 5 | . . 1 . 4 Attach 31 | 6 3 1 . 21 Detach 2 | . 2 . . . Swap 4 | . . 1 . 3 Drop 13 | . 2 2 . 9 Fire 61 | . 13 11 5 32 Melee . | . . . . . Ram . | . . . . . Kick 1 | . 1 . . . Crush . | . . . . . Escape Stasis . | . . . . . Rewire . | . . . . . Trap . | . . . . . Miscellaneous . | . . . . . Route ------- -11/Scrapyard -10/Materials -9/Materials (discovered 2 exits: *Min x2) -9/Mines -8/Materials History --------- Turn | Location | Event 5 | -11/Scrapyard | Discovered new exit (range 14) 73 | -11/Scrapyard | Entered Materials 262 | -10/Materials | Discovered new exit (range 16) 303 | -10/Materials | Build established: Mutant 348 | -10/Materials | Entered another Materials area 348 | -9/Materials | Evolved 2 slots: Power x1, Utility x1 385 | -9/Materials | Identified exit to Mines 690 | -9/Materials | Entered Mines 1094 | -9/Mines | Discovered new exit (range 6) 1239 | -9/Mines | Destroyed YI-UF0 1268 | -9/Mines | Assembled infested the area 1273 | -9/Mines | Assisted by a Guerilla fighting off Assembled 1616 | -9/Mines | Entered Materials 1616 | -8/Materials | Evolved 2 slots: Weapon x2 1629 | -8/Materials | Lost 3 parts (1p1u1w) 2069 | -8/Materials | Lost 6 parts (2p1u3w) 2255 | -8/Materials | Garrison activated, responded to threat 2274 | -8/Materials | Core integrity fell below 50% 2288 | -8/Materials | Core integrity fell below 20% 2313 | -8/Materials | Destroyed by G-47 Trooper with Particle Gun Last Messages --------------- Slug penetrates Wall. K-01 Serf cleans the Repair Station. Penetrated by Slug. Slug penetrates Wall. Overheating: Matter decay (-20). Penetrated by Slug. Slug penetrates Wall. Acquired Lgt. Armor Plating. Dropped Sml. Storage Unit. Overheating: Arm. Treads damaged (-52). Slug penetrates Wall. Penetrated by Slug. Arm. Treads destroyed. U-05 Engineer lays Concrete. Dropped Lrg. Storage Unit. Dropped Adv. Treads. Dropped Lgt. Armor Plating. Dropped Hrd. Light Armor Plating. G-47 Trooper destroyed. Penetrated by Slug. Map ----- +----------------------------------------------------+ | ?# T* #????????????????????????????????????????? | | ?# #????????????????????????????????????????? | | ## #????????????????????????????????????????? | | # #????????????????????????????????????????? | | # #????????????????????????????????????????? | | ##+#####????????????????????????????????????????? | | #??????????????????????????????????????????? | | #???????????#??????????????????????????????? | | #### ##??????????#??????????????????????????????? | | ## # "############??????????????????????????????? | | ###" ????????????????????????????? | | "[ ##########+##??????????????????????????????? | | #" !"#??# #??????????????????????????????? | | " *%=#??# """"" #??????????????????????????????? | | ! #??# """"" #??????????????????????????????? | | # #??# """"" #??????????????????????????????? | | " "% #?????????????????????????????????????????? | | ""## "############## #???########???????????????? | | S"## #??# #???????????????? | | ## #??# """" #????#??????????? | | #### #??# """" #??? +??????????? | | ???# ############## #??# """" #?? #??????????? | | ???# #????????????# ?????# #? #??????????? | | ???# #????????????# ????# ! ## ###+#??????? | | ???# #????????????# #######+### #??????? | | ???# #????????????# @!!! *gg #??????? | | ???# #????????????# =u!!%g w ##?????? | | ???# #????????????# whhY Yr ???? | | ???# #????????????######## k ???? | | ???# #???????????????????# ???? | | #### ##??????????????????# ???? | | #??????????????????# ##### ######## ????? | | #################### #????+#????????????? | | # !## #????? ????????????? | | +### # " ## #????? ???????????? | | ## #""" ## ^^ ^ #?????? #??????????? | | ## #""" ##^ #???????#??????????? | | ## #""" ##= ^ " "" #??????????????????? | | ## # "" ##= "R"" #??????????????????? | | ## #""" ## """ #??????????????????? | | ## #"" ## #??????????????????? | | ## #"" ## % #??????????????????? | | #### # " ## ##########??????????????????? | | ???# # ## #???????????????????????????? | | #### ###+###### #???????????????????????????? | | #???????????????????????????? | | #???????????????????????????? | | #???????????????????????????? | | #####+###### ####???????????????????????????? | | #?? ???#! !#??????????????????????????????? | +----------------------------------------------------+ Best States ------------- Heat Dissipation 31 Energy Generation 17 Energy Capacity 415 Matter Stores 300 Matter Capacity 300 Sight Range 16 Terrain Scan Density 10 ECM Strength 1 Armor Coverage 300 Resistance: KI 20 Resistance: TH 20 Resistance: EX 20 Resistance: EM 20 Resistance: I 20 Resistance: S 20 Resistance: P 20 Evasion (%) 50 Recoil Reduction 2 Offensive Hacking 20 Defensive Hacking 10 Item Schematics ----------------- Imp. Light Armor Plating | -8/Materials | Scanalyzed Nuclear Core | -8/Materials | Scanalyzed Lrg. Storage Unit | -8/Materials | Scanalyzed Hrd. Light Armor Plating | -8/Materials | Scanalyzed Adv. Treads | -8/Materials | Scanalyzed Robot Schematics ------------------ None Fabricated ------------ Nothing Alien Tech Used ----------------- None Achievements -------------- None Challenges ------------ None Game ------ Seed BurstSpectralGun Manual? 0 Play Time 00:28:54 Cumulative 14.4 hours Start 2021.08.06 @ 02:00:20 End 2021.08.06 @ 02:29:14 Sessions 1 Manual Loads 0 Difficulty Adventurer Special Mode None Game No. 22 Rogue 21 Adventurer 1 Explorer 0 Win Type - Total 0 Types 0/0/0/0/0/0/0/0/0 Lore% 23 Gallery% 26 Achievement% 18 Wizard Run 0 Options --------- ASCII 0 Keyboard 0 Movement Mouse Keybinds 0 Fullscreen 1 Font 18/SmallcapsGlow Map View 76x50 Tactical HUD 0 Map Filters NONE Filters NONE Steam 1 RUN: e861abde-5f03-4bc4-9861-39ca421b3808